Workbook

Sheet 01
A1: 贵阳市不动产登记中心面试成绩及进入体检环节人员名单
A2: 序号 | B2: 姓名 | C2: 准考证号 | D2: 单位 | E2: 报考岗位及代码 | F2: 笔试成绩 | G2: 笔试成绩（百分制） | H2: 笔试成绩30% | I2: 专业测试成绩 | J2: 专业测试成绩40% | K2: 笔试、专业测试成绩 | L2: 面试成绩 | M2: 面试成绩30% | N2: 笔试、专业测试、面试成绩 | O2: 综合排名 | P2: 是否进入体检
A3: 1 | B3: 张雨菲 | C3: 1152019602513 | D3: 贵阳市不动产登记中心 | E3: 01专业技术岗位 | F3: 207.5 | G3: =F3/3 -> 69.17 | H3: =G3*0.3 -> 20.75 | I3: 65 | J3: =I3*0.4 -> 26 | K3: =H3+J3 -> 46.75 | L3: 81.8 | M3: =L3*0.3 -> 24.54 | N3: =K3+M3 -> 71.29 | O3: 1 | P3: 是
A4: 2 | B4: 何佳 | C4: 1152019601107 | D4: 贵阳市不动产登记中心 | E4: 01专业技术岗位 | F4: 181 | G4: 60.33 | H4: 18.1 | I4: 68 | J4: 27.2 | K4: 45.3 | L4: 81.8 | M4: =L4*0.3 -> 24.54 | N4: =K4+M4 -> 69.84 | O4: 2
A5: 3 | B5: 王若珊 | C5: 1152019601604 | D5: 贵阳市不动产登记中心 | E5: 01专业技术岗位 | F5: 207.5 | G5: 69.17 | H5: 20.75 | I5: 61 | J5: 24.4 | K5: 45.15 | L5: 75 | M5: 22.5 | N5: 67.65 | O5: 3

Sheet 02
A1: 贵阳市不动产登记中心面试成绩及进入体检环节人员名单
A2: 序号 | B2: 姓名 | C2: 准考证号 | D2: 单位 | E2: 报考岗位及代码 | F2: 笔试成绩 | G2: 笔试成绩（百分制） | H2: 笔试成绩30% | I2: 专业测试成绩 | J2: 专业测试成绩40% | K2: 笔试、专业测试成绩 | L2: 面试成绩 | M2: 面试成绩30% | N2: 笔试、专业测试、面试成绩 | O2: 综合排名 | P2: 是否进入体检
A3: 1 | B3: 唐雨浓 | C3: 1152019600618 | D3: 贵阳市不动产登记中心 | E3: 02专业技术岗位 | F3: 206.5 | G3: =F3/3 -> 68.83 | H3: =G3*0.3 -> 20.65 | I3: 63.0 | J3: =I3*0.4 -> 25.2 | K3: =H3+J3 -> 45.85 | L3: 85 | M3: =L3*0.3 -> 25.5 | N3: =K3+M3 -> 71.35 | O3: 1 | P3: 是
A4: 2 | B4: 曾梓洲 | C4: 1152019601904 | D4: 贵阳市不动产登记中心 | E4: 02专业技术岗位 | F4: 191 | G4: 63.67 | H4: 19.1 | I4: 60.0 | J4: 24 | K4: 43.1 | L4: 84 | M4: =L4*0.3 -> 25.2 | N4: =K4+M4 -> 68.3 | O4: 2
A5: 4 | B5: 刘琴 | C5: 1152019603907 | D5: 贵阳市不动产登记中心 | E5: 02专业技术岗位 | F5: 184.5 | G5: 61.50 | H5: 18.45 | I5: 60.0 | J5: 24 | K5: 42.45 | L5: 83.4 | M5: 25.02 | N5: 67.47 | O5: 3

Sheet 03
A1: 贵阳市不动产登记中心面试成绩及进入体检环节人员名单
A2: 序号 | B2: 姓名 | C2: 准考证号 | D2: 单位 | E2: 报考岗位及代码 | F2: 笔试成绩 | G2: 笔试成绩（百分制） | H2: 笔试成绩30% | I2: 专业测试成绩 | J2: 专业测试成绩40% | K2: 笔试、专业测试成绩 | L2: 面试成绩 | M2: 面试成绩30% | N2: 笔试、专业测试、面试成绩 | O2: 综合排名 | P2: 是否进入体检
A3: 1 | B3: 陈兴兰 | C3: 1152019602320 | D3: 贵阳市不动产登记中心 | E3: 03专业技术岗位 | F3: 182 | G3: =F3/3 -> 60.67 | H3: =G3*0.3 -> 18.2 | I3: 78 | J3: =I3*0.4 -> 31.2 | K3: =H3+J3 -> 49.4 | L3: 77.2 | M3: =L3*0.3 -> 23.16 | N3: =K3+M3 -> 72.56 | O3: 1 | P3: 是
A4: 3 | B4: 刘欢 | C4: 1152019601319 | D4: 贵阳市不动产登记中心 | E4: 03专业技术岗位 | F4: 184 | G4: =F4/3 -> 61.33 | H4: =G4*0.3 -> 18.4 | I4: 69 | J4: =I4*0.4 -> 27.6 | K4: =H4+J4 -> 46 | L4: 80.2 | M4: =L4*0.3 -> 24.06 | N4: =K4+M4 -> 70.06 | O4: 2
A5: 2 | B5: 喻林丽 | C5: 1152019603730 | D5: 贵阳市不动产登记中心 | E5: 03专业技术岗位 | F5: 184.5 | G5: =F5/3 -> 61.50 | H5: =G5*0.3 -> 18.45 | I5: 69 | J5: =I5*0.4 -> 27.6 | K5: =H5+J5 -> 46.05 | L5: 76.4 | M5: =L5*0.3 -> 22.92 | N5: =K5+M5 -> 68.97 | O5: 3

Sheet Sheet1
